fUSD/lending_fUSD_20251003
["ID","MTS","AMOUNT","RATE_DAILY","PERIOD"]
[388920014,1759503033848,-200.0,0.0001699,2]
[388920015,1759503033858,-500.0,0.0001699,2]
[388920016,1759503033868,-252.80395902,0.0001699,2]
[388920017,1759503033878,-151.0,0.0001699,2]
[388920018,1759503033887,-500.0,0.0001699,2]
[388920019,1759503033897,-500.0,0.0001699,2]
[388920020,1759503033907,-322.6107,0.0001699,2]
[388920021,1759503033916,-500.0,0.0001699,2]
[388920022,1759503033926,-500.0,0.0001699,2]
[388920023,1759503033935,-500.0,0.0001699,2]
[388920024,1759503033945,-500.0,0.0001699,2]
[388920025,1759503033954,-500.0,0.0001699,2]
[388920026,1759503033963,-500.0,0.0001699,2]
[388920027,1759503033973,-500.0,0.0001699,2]
[388920028,1759503033983,-500.0,0.0001699,2]
[388920029,1759503033992,-500.0,0.0001699,2]
[388920030,1759503034002,-500.0,0.0001699,2]
[388920031,1759503034012,-500.0,0.0001699,2]
[388920032,1759503034023,-500.0,0.0001699,2]
[388920033,1759503034032,-500.0,0.0001699,2]
[388920034,1759503034042,-500.0,0.0001699,2]
[388920035,1759503034052,-500.0,0.0001699,2]
[388920036,1759503034065,-500.0,0.0001699,2]
[388920037,1759503034074,-500.0,0.0001699,2]
[388920038,1759503034085,-500.0,0.0001699,2]
[388920039,1759503034094,-500.0,0.0001699,2]
[388920040,1759503034104,-500.0,0.0001699,2]
[388920041,1759503034114,-158.36959117,0.0001699,2]
[388920042,1759503034124,-500.0,0.0001699,2]
[388920043,1759503034135,-500.0,0.0001699,2]
[388920044,1759503034146,-479.17335335,0.0001699,2]
[388920045,1759503034156,-545.9,0.0001699,2]
[388920046,1759503034166,-677.33712987,0.00016999,2]
[388920047,1759503034176,-8860.29247418,0.00016999,2]
[388920048,1759503034224,-500.0,0.00016943,2]
[388920049,1759503034235,-1139.70752582,0.00016999,2]
[388920050,1759503034245,-475.67035631,0.00016999,2]
[388920051,1759503034255,-182.96924941,0.00016999,2]
[388920052,1759503034264,-6346.16440843,0.00017,2]
[388920053,1759503034311,-500.0,0.00016943,2]
[388920054,1759503034320,-11014.282857,0.00017,2]
[388920055,1759503034332,-564.13304519,0.00017,2]
[388920056,1759503034435,-500.0,0.00016943,2]
[388920057,1759503034445,-11525.36674474,0.00017,2]
[388920058,1759503034457,-1450.0,0.00017,2]
[388920059,1759503034469,-1352.01496436,0.00017,2]
[388920060,1759503034499,-46057.48468542,0.00017,2]
[388920061,1759503034509,-8565.75555911,0.00017,2]
[388920062,1759503034519,-166132.21764172,0.00017,2]
[388920063,1759503034530,-34208.70091695,0.00017,2]
[388920079,1759503037990,-4311.59999998,0.00017,2]
[388920082,1759503038002,-31715.07731321,0.00017,2]
[388920084,1759503038012,-89178.34121029,0.00017,2]
[388920087,1759503038030,-53447.07431064,0.00017,2]
[388920089,1759503038041,-16104.0,0.00017,2]
[388920091,1759503038052,-10290.0,0.00017,2]
[388920093,1759503038066,-40550.28586,0.00017,2]
[388920095,1759503038078,-14818.65479966,0.00017,2]
[388920128,1759503039765,-279.62799998,0.00017,2]
[388920129,1759503039777,-1207.994,0.00017,2]
[388920130,1759503039788,-217583.35323458,0.00017,2]
[388920131,1759503039810,-1173.2,0.00017,2]
[388920132,1759503039917,-5383.25000004,0.00017,2]
[388920142,1759503040005,-630.69002057,0.00017,2]
[388920217,1759503043174,-213358.98851572,0.00017,2]
[388920218,1759503043184,-57935.24696897,0.00017,2]
[388920219,1759503043194,-1133361.13424623,0.00017,2]
[388920221,1759503043226,-24148.2361723,0.00017,2]
[388920291,1759503045701,-120830.79443166,0.00017,2]
[388920292,1759503045843,-500.25000038,0.00017,2]
[388920293,1759503045855,-2140.74421574,0.00017,2]
[388920294,1759503045866,-338.15791999,0.00017,2]
[388920295,1759503045879,-311.06577172,0.00017,2]
[388920296,1759503045891,-954.87255784,0.00017,2]
[388920297,1759503045902,-5029.90248044,0.00017,2]
[388920298,1759503045912,-25060.3821665,0.00017,2]
[388920299,1759503045922,-500.0,0.00017,2]
[388920300,1759503045931,-151.0,0.00017,2]
[388920301,1759503045940,-151.0,0.00017,2]
[388920302,1759503045951,-151.0,0.00017,2]
[388920303,1759503045961,-151.0,0.00017,2]
[388920304,1759503045970,-151.0,0.00017,2]
[388920305,1759503045980,-151.0,0.00017,2]
[388920306,1759503045990,-210.114619,0.00017,2]
[388920307,1759503046000,-210.824686,0.00017,2]
[388920308,1759503046010,-151.0,0.00017,2]
[388920309,1759503046019,-151.0,0.00017,2]
[388920311,1759503046029,-151.0,0.00017,2]
[388920312,1759503046039,-151.0,0.00017,2]
[388920313,1759503046048,-151.0,0.00017,2]
[388920314,1759503046058,-194.586161,0.00017,2]
[388920315,1759503046072,-151.0,0.00017,2]
[388920316,1759503046083,-151.0,0.00017,2]
[388920317,1759503046092,-151.0,0.00017,2]
[388920318,1759503046102,-209.799028,0.00017,2]
[388920319,1759503046113,-151.0,0.00017,2]
[388920320,1759503046123,-151.0,0.00017,2]
[388920321,1759503046132,-151.0,0.00017,2]
[388920322,1759503046143,-162.388332,0.00017,2]
[388920323,1759503046153,-151.0,0.00017,2]
[388920324,1759503046162,-151.0,0.00017,2]
[388920326,1759503046172,-151.0,0.00017,2]
[388920328,1759503046182,-151.0,0.00017,2]
[388920330,1759503046190,-151.0,0.00017,2]
[388920332,1759503046200,-151.0,0.00017,2]
[388920334,1759503046209,-151.0,0.00017,2]
[388920336,1759503046218,-151.0,0.00017,2]
[388920338,1759503046227,-151.0,0.00017,2]
[388920340,1759503046236,-151.0,0.00017,2]
[388920342,1759503046246,-151.0,0.00017,2]
[388920344,1759503046255,-151.0,0.00017,2]
[388920346,1759503046265,-151.0,0.00017,2]
[388920348,1759503046274,-151.0,0.00017,2]
[388920350,1759503046283,-151.0,0.00017,2]
[388920352,1759503046292,-151.0,0.00017,2]
[388920355,1759503046310,-151.0,0.00017,2]
[388920357,1759503046322,-151.0,0.00017,2]
[388920359,1759503046331,-151.0,0.00017,2]
[388920361,1759503046341,-151.0,0.00017,2]
[388920363,1759503046351,-151.0,0.00017,2]
[388920365,1759503046360,-151.0,0.00017,2]
[388920367,1759503046370,-2457.2423079,0.00017,2]
[388920620,1759503048871,1000.0,0.00030136,120]
[388920685,1759503082712,445.02,0.00015988,2]
[388920687,1759503163862,621.1,0.00016438,2]
[388920689,1759503222969,641.49,0.00015988,2]
[388920690,1759503255908,62781.24,0.00015988,2]
[388920691,1759503287208,402.24,0.00015988,2]
[388920692,1759503326913,200.0,0.00015977,2]
[388920693,1759503373247,4480.27,0.00015988,2]
[388920694,1759503447313,13004.36668305,0.0001659,2]
[388920695,1759503545432,124315.0,0.000166,2]
[388920701,1759503608501,1500.0,0.00030136,120]
[388920702,1759503662766,666.0,0.00016162,3]
[388920703,1759503724609,158.0,0.000166,2]
[388920704,1759503725552,158.0,0.000166,2]
[388920705,1759503735181,158.0,0.000166,2]
[388920706,1759503756742,158.0,0.000301,120]
[388920707,1759503761773,158.0,0.000301,120]
[388920708,1759503762873,158.0,0.000301,120]
[388920709,1759503763717,1323.49,0.00016181,2]
[388920710,1759503776206,158.0,0.000166,2]
[388920711,1759503779329,159.0,0.000166,2]
[388920712,1759503821026,161.0,0.000166,2]
[388920713,1759503833323,161.69,0.000166,2]
[388920714,1759503892885,164.68,0.00016058,2]
[388920715,1759504082760,244.13,0.000165,2]
[388920718,1759504215170,2000.0,0.00030137,120]
[388920730,1759504231994,-1215.95052282,0.00016693,2]
[388920731,1759504232004,-465.43656653,0.00016709,2]
[388920732,1759504232013,-1455.44588943,0.00016714,2]
[388920733,1759504232025,-544.55411057,0.00016714,2]
[388920734,1759504232034,-2000.0,0.00016725,2]
[388920735,1759504232044,-150.0,0.00016756,2]
[388920736,1759504232055,-150.0,0.00016768,2]
[388920737,1759504232065,-300.0,0.00016774,2]
[388920738,1759504232075,-300.0,0.00016788,2]
[388920739,1759504232085,-277.0,0.00016788,2]
[388920740,1759504232094,-300.0,0.00016788,2]
[388920741,1759504232107,-1200.0,0.00016788,2]
[388920742,1759504232116,-1000.0,0.00016789,2]
[388920743,1759504232130,-454.92897089,0.00016789,2]
[388920744,1759504232140,-1000.0,0.00016789,2]
[388920745,1759504232150,-328.53621072,0.00016789,2]
[388920746,1759504232159,-230.10775849,0.00016789,2]
[388920747,1759504232170,-3299.20838633,0.00016789,2]
[388920748,1759504232319,-4666.20214635,0.00016789,2]
[388920749,1759504232330,-601.3376128,0.00016789,2]
[388920750,1759504232340,-151.0,0.00016789,2]
[388920753,1759504232350,-151.0,0.00016789,2]
[388920755,1759504232360,-429.81112634,0.00016789,2]
[388920757,1759504232373,-70.18887366,0.00016789,2]
[388920759,1759504232383,-500.0,0.00016789,2]
[388920761,1759504232392,-500.0,0.00016789,2]
[388920762,1759504232402,-500.0,0.00016789,2]
[388920765,1759504232414,-231.28369723,0.00016789,2]
[388920767,1759504232424,-500.0,0.00016789,2]
[388920768,1759504232434,-500.0,0.00016789,2]
[388920770,1759504232443,-500.0,0.00016789,2]
[388920773,1759504232455,-500.0,0.00016789,2]
[388920775,1759504232464,-500.0,0.00016789,2]
[388920777,1759504232473,-500.0,0.00016789,2]
[388920778,1759504232484,-240.29358765,0.00016789,2]
[388920780,1759504232495,-259.70641235,0.00016789,2]
[388920781,1759504232505,-500.0,0.00016789,2]
[388920783,1759504232514,-500.0,0.00016789,2]
[388920786,1759504232524,-500.0,0.00016789,2]
[388920789,1759504232533,-346.68577312,0.00016789,2]
[388920792,1759504232544,-153.31422688,0.00016789,2]
[388920794,1759504232554,-500.0,0.00016789,2]
[388920796,1759504232563,-329.11894386,0.00016789,2]
[388920798,1759504232574,-170.88105614,0.00016789,2]
[388920800,1759504232583,-500.0,0.00016789,2]
[388920802,1759504232592,-500.0,0.00016789,2]
[388920804,1759504232601,-200.0,0.00016789,2]
[388920806,1759504232612,-586.94706011,0.00016789,2]
[388920808,1759504232621,-500.0,0.00016789,2]
[388920810,1759504232632,-500.0,0.00016789,2]
[388920812,1759504232642,-500.0,0.00016789,2]
[388920814,1759504232651,-500.0,0.00016789,2]
[388920816,1759504232661,-500.0,0.00016789,2]
[388920817,1759504232671,-500.0,0.00016789,2]
[388920818,1759504232680,-578.86,0.00016789,2]
[388920819,1759504232690,-150.0,0.00016797,2]
[388920820,1759504232700,-150.0,0.00016797,2]
[388920821,1759504232710,-500.0,0.00016812,2]
[388920822,1759504232720,-500.0,0.00016812,2]
[388920823,1759504232729,-500.0,0.00016812,2]
[388920824,1759504232740,-500.0,0.00016812,2]
[388920825,1759504232750,-500.0,0.00016812,2]
[388920826,1759504232760,-527.87228895,0.00016812,2]
[388920827,1759504232770,-500.0,0.00016812,2]
[388920828,1759504232780,-500.0,0.00016812,2]
[388920829,1759504232791,-500.0,0.00016812,2]
[388920830,1759504232800,-500.0,0.00016812,2]
[388920831,1759504232810,-500.0,0.00016812,2]
[388920832,1759504232820,-500.0,0.00016812,2]
[388920833,1759504232830,-500.0,0.00016812,2]
[388920834,1759504232840,-150.0,0.00016813,2]
[388920835,1759504232850,-1706.9637,0.0001683,2]
[388920836,1759504232859,-150.0,0.00016832,2]
[388920837,1759504232869,-1425.0,0.00016834,2]
[388920838,1759504232882,-8260.13072239,0.00016844,2]
[388920839,1759504232892,-280.60221548,0.00016847,2]
[388920840,1759504232902,-200.0,0.00016864,2]
[388920841,1759504232912,-150.0,0.00016878,2]
[388920842,1759504232922,-150.0,0.00016891,2]
[388920843,1759504232932,-150.0,0.00016892,2]
[388920844,1759504232942,-8565.75555911,0.00016899,2]
[388920845,1759504232952,-467.41790833,0.00016904,2]
[388920846,1759504232963,-1425.0,0.00016905,2]
[388920847,1759504232974,-1425.0,0.00016933,2]
[388920848,1759504232984,-1000.0,0.0001694,2]
[388920849,1759504232994,-1425.0,0.00016943,2]
[388920850,1759504233003,-8882.6885148,0.00016954,2]
[388920851,1759504233014,-500.0,0.00016959,2]
[388920852,1759504233024,-1425.0,0.00016969,2]
[388920853,1759504233034,-150.0,0.0001697,2]
[388920854,1759504233044,-216.75,0.00016977,2]
[388920855,1759504233054,-967.5804,0.00016982,2]
[388920856,1759504233065,-150.0,0.00016996,2]
[388920857,1759504233075,-150.0,0.00016999,2]
[388920858,1759504233085,-152.7052589,0.00017,2]
[388920859,1759504233099,-2595.3273291,0.00017,2]
[388920860,1759504233110,-500.0,0.00017,2]
[388920861,1759504233120,-500.0,0.00017,2]
[388920862,1759504233133,-500.49838233,0.00017,2]
[388920863,1759504233143,-500.0,0.00017,2]
[388920864,1759504233154,-500.0,0.00017,2]
[388920865,1759504233164,-230.42162631,0.00017,2]
[388920866,1759504233174,-5373.0202508,0.00017,2]
[388920867,1759504233184,-500.0,0.00017,2]
[388920868,1759504233194,-1706.9637,0.00017,2]
[388920869,1759504233204,-1706.96371,0.00017,2]
[388920870,1759504233214,-1706.96371,0.00017,2]
[388920871,1759504233224,-1706.9637,0.00017,2]
[388920872,1759504233234,-1706.96371,0.00017,2]
[388920873,1759504233244,-29096.3989878,0.00017,2]
[388920874,1759504233254,-160.69,0.00017009,2]
[388920875,1759504233265,-9211.34798985,0.00017009,2]
[388920876,1759504233275,-578.86,0.00017063,2]
[388920877,1759504233285,-9552.16786547,0.00017064,2]
[388920878,1759504233295,-5587.99102196,0.00017082,2]
[388920879,1759504233305,-5000.0,0.00017082,2]
[388920880,1759504233315,-5000.0,0.00017082,2]
[388920881,1759504233324,-4860.3588605,0.00017119,2]
[388920882,1759504233335,-1465.9562,0.00017165,2]
[388920883,1759504233345,-1000.0,0.00017165,2]
[388920884,1759504233355,-150.0,0.000172,2]
[388920885,1759504233366,-150.32,0.000172,2]
[388920886,1759504233377,-1124.17,0.000172,2]
[388920887,1759504233389,-150.78,0.000172,2]
[388920888,1759504233400,-167.84,0.000172,2]
[388920889,1759504233414,-153.34,0.000172,2]
[388920890,1759504233424,-300.0,0.000172,2]
[388920891,1759504233435,-412.7,0.000172,2]
[388920892,1759504233446,-473.79,0.0001726,2]
[388920893,1759504233458,-150.0,0.0001726,2]
[388920894,1759504233469,-150.0,0.0001726,2]
[388920895,1759504233480,-150.0,0.0001726,2]
[388920896,1759504233493,-150.0,0.0001726,2]
[388920897,1759504233503,-150.0,0.0001726,2]
[388920898,1759504233513,-150.0,0.0001726,2]
[388920899,1759504233523,-224.84664909,0.0001726,2]
[388920900,1759504233533,-150.0,0.0001726,2]
[388920901,1759504233543,-2000.0,0.000173,2]
[388920902,1759504233554,-807.29,0.000173,2]
[388920903,1759504233564,-1402.66,0.000173,2]
[388920904,1759504233960,-151.0,0.00017337,2]
[388920905,1759504233972,-202.04263158,0.00017337,2]
[388920906,1759504233982,-578.86,0.00017337,2]
[388920907,1759504233992,-170.21,0.00017384,2]
[388920908,1759504234002,-164.68,0.00017396,2]
[388920909,1759504234012,-150.0,0.000175,2]
[388920910,1759504234022,-839.13,0.00017546,2]
[388920911,1759504234032,-749.97818961,0.00017548,2]
[388920912,1759504234041,-501.11732063,0.00017548,2]
[388920913,1759504234051,-1000.98670525,0.00017548,2]
[388920914,1759504234061,-1000.0,0.00017548,2]
[388920915,1759504234071,-1000.0,0.00017548,2]
[388920916,1759504234080,-578.86,0.00017611,2]
[388920917,1759504234090,-160.69,0.00017748,2]
[388920918,1759504234100,-170.97,0.00017753,2]
[388920919,1759504234110,-500.0,0.00017854,2]
[388920920,1759504234119,-151.0,0.00017885,2]
[388920921,1759504234132,-578.86938221,0.00017885,2]
[388920922,1759504234141,-12700.00160768,0.00018,2]
[388920923,1759504234151,-2000.0,0.0001802,2]
[388920924,1759504234160,-179.56,0.00018023,2]
[388920925,1759504234170,-1500.0,0.00018096,2]
[388920926,1759504234180,-1500.0,0.00018096,2]
[388920927,1759504234190,-500.0,0.00018128,2]
[388920928,1759504234200,-171.61279121,0.00018158,2]
[388920929,1759504234210,-800.0,0.000182,6]
[388920930,1759504234221,-1700.0,0.000183,6]
[388920931,1759504234231,-807.29,0.00018333,2]
[388920932,1759504234241,-473.63,0.00018333,2]
[388920933,1759504234251,-807.29,0.00018333,2]
[388920934,1759504234261,-515.97547671,0.00018337,2]
[388920935,1759504234272,-150.0,0.00018339,2]
[388920936,1759504234282,-150.0,0.00018339,2]
[388920937,1759504234292,-150.0,0.00018339,2]
[388920938,1759504234302,-420.0,0.0001834,2]
[388920939,1759504234311,-839.13,0.00018344,2]
[388920940,1759504234322,-300.0,0.00018363,2]
[388920941,1759504234332,-195.0,0.0001838,2]
[388920942,1759504234341,-310.49237788,0.0001838,2]
[388920943,1759504234351,-2000.0,0.0001838,2]
[388920944,1759504234361,-313.83616509,0.0001838,2]
[388920945,1759504234371,-269.64672557,0.0001838,2]
[388920946,1759504234385,-300.0,0.0001838,2]
[388920947,1759504234395,-309.51421588,0.0001838,2]
[388920948,1759504234406,-392.34185733,0.0001838,2]
[388920949,1759504234419,-201.02007859,0.0001838,2]
[388920950,1759504234429,-2600.0,0.000184,6]
[388920951,1759504234439,-278.07847459,0.00018401,2]
[388920952,1759504234450,-500.0,0.00018402,2]
[388920953,1759504234460,-1680.0,0.00018431,2]
[388920954,1759504234471,-151.0,0.00018433,2]
[388920955,1759504234481,-1036.6674626,0.00018433,2]
[388920956,1759504234492,-3400.0,0.000185,6]
[388920957,1759504234501,-149885.0564,0.00018502,2]
[388920958,1759504234511,-1036.6674626,0.00018505,2]
[388920959,1759504234520,-150.99,0.00018533,2]
[388920960,1759504234529,-8254.22,0.00018533,2]
[388920961,1759504234539,-1298.33,0.00018533,2]
[388920962,1759504234549,-150.99,0.00018533,2]
[388920963,1759504234558,-4763.85,0.00018533,2]
[388920964,1759504234569,-9999.99,0.00018533,2]
[388920965,1759504234579,-505.4,0.00018533,2]
[388920966,1759504234588,-2145.14,0.00018533,2]
[388920967,1759504234597,-3632.95,0.00018533,2]
[388920968,1759504234607,-1036.6674626,0.00018576,2]
[388920969,1759504234617,-515.97547669,0.00018584,2]
[388920970,1759504234629,-408.0,0.000186,2]
[388920971,1759504234640,-1000.0,0.000186,2]
[388920972,1759504234650,-151.0,0.000186,2]
[388920973,1759504234659,-151.0,0.000186,2]
[388920974,1759504234670,-152.892554,0.000186,2]
[388920975,1759504234679,-4300.0,0.000186,6]
[388920976,1759504234689,-1000.0,0.0001863,2]
[388920977,1759504234699,-1293.72102665,0.00018644,2]
[388920978,1759504234709,-500.0,0.00018644,2]
[388920979,1759504234719,-1036.6674626,0.00018648,2]
[388920980,1759504234729,-500.0,0.00018676,2]
[388920981,1759504234739,-150.0,0.0001868,2]
[388920982,1759504234749,-800.0,0.000187,6]
[388920983,1759504234758,-1000.0,0.000187,2]
[388920984,1759504234768,-1089.95,0.00018716,2]
[388920985,1759504234778,-1036.6674626,0.0001872,2]
[388920986,1759504234787,-4055.96370174,0.00018722,2]
[388920987,1759504234797,-164.68,0.00018734,2]
[388920988,1759504234807,-250.49971746,0.00018777,2]
[388920989,1759504234817,-1036.6674626,0.00018791,2]
[388920990,1759504234826,-4055.96370174,0.00018793,2]
[388920991,1759504234836,-800.0,0.000188,6]
[388920992,1759504234845,-164.04,0.00018813,2]
[388920993,1759504234854,-348.11,0.00018816,2]
[388920994,1759504234864,-515.97547669,0.00018831,2]
[388920995,1759504234875,-1036.6674626,0.00018863,2]
[388920996,1759504234884,-4055.96370174,0.00018864,2]
[388920997,1759504234894,-800.0,0.000189,6]
[388920998,1759504234904,-255.79503756,0.00018923,2]
[388920999,1759504234914,-1036.6674626,0.00018935,2]
[388921000,1759504234923,-4055.96370174,0.00018936,2]
[388921001,1759504234933,-500.0,0.0001895,2]
[388921002,1759504234943,-500.0,0.00018973,2]
[388921003,1759504234952,-500.0,0.00018973,2]
[388921004,1759504234962,-500.0,0.00018973,2]
[388921005,1759504234971,-500.0,0.00018973,2]
[388921006,1759504234981,-500.0,0.00018973,2]
[388921007,1759504234991,-502.471142,0.00018973,2]
[388921008,1759504235000,-500.0,0.00018973,2]
[388921009,1759504235010,-151.0,0.00018978,2]
[388921010,1759504235020,-151.0,0.00018978,2]
[388921011,1759504235030,-151.0,0.00018978,2]
[388921012,1759504235040,-151.0,0.00018978,2]
[388921013,1759504235050,-151.0,0.00018978,2]
[388921014,1759504235060,-151.0,0.00018978,2]
[388921015,1759504235070,-151.0,0.00018978,2]
[388921016,1759504235081,-151.0,0.00018978,2]
[388921017,1759504235091,-151.0,0.00018978,2]
[388921018,1759504235102,-151.0,0.00018978,2]
[388921019,1759504235112,-156.409171,0.00018978,2]
[388921020,1759504235122,-151.0,0.00018978,2]
[388921021,1759504235134,-151.0,0.00018978,2]
[388921022,1759504235143,-151.0,0.00018978,2]
[388921023,1759504235152,-151.0,0.00018978,2]
[388921024,1759504235162,-151.0,0.00018978,2]
[388921025,1759504235172,-151.0,0.00018978,2]
[388921026,1759504235182,-151.0,0.00018978,2]
[388921027,1759504235192,-151.0,0.00018978,2]
[388921028,1759504235201,-151.0,0.00018978,2]
[388921029,1759504235211,-151.0,0.00018978,2]
[388921030,1759504235220,-151.0,0.00018978,2]
[388921031,1759504235230,-151.0,0.00018978,2]
[388921032,1759504235240,-165.746792,0.00018978,2]
[388921033,1759504235249,-165.746792,0.00018978,2]
[388921034,1759504235259,-165.746792,0.00018978,2]
[388921035,1759504235268,-165.746792,0.00018978,2]
[388921036,1759504235278,-151.0,0.00018978,2]
[388921037,1759504235287,-151.0,0.00018978,2]
[388921038,1759504235297,-151.0,0.00018978,2]
[388921039,1759504235308,-151.0,0.00018978,2]
[388921040,1759504235318,-282.349316,0.00018978,2]
[388921041,1759504235327,-151.0,0.00018978,2]
[388921042,1759504235337,-151.0,0.00018978,2]
[388921043,1759504235346,-151.0,0.00018978,2]
[388921044,1759504235356,-151.0,0.00018978,2]
[388921045,1759504235366,-178.333038,0.00018978,2]
[388921046,1759504235375,-151.0,0.00018978,2]
[388921047,1759504235385,-151.0,0.00018978,2]
[388921048,1759504235395,-151.0,0.00018978,2]
[388921049,1759504235406,-151.0,0.00018978,2]
[388921050,1759504235419,-159.995548,0.00018978,2]
[388921051,1759504235429,-159.995548,0.00018978,2]
[388921052,1759504235441,-159.995548,0.00018978,2]
[388921053,1759504235452,-159.995548,0.00018978,2]
[388921054,1759504235462,-215.193341,0.00018978,2]
[388921055,1759504235472,-215.193341,0.00018978,2]
[388921056,1759504235482,-215.193341,0.00018978,2]
[388921057,1759504235494,-215.193341,0.00018978,2]
[388921058,1759504235503,-356.064421,0.00018978,2]
[388921059,1759504235514,-356.064421,0.00018978,2]
[388921060,1759504235523,-356.064421,0.00018978,2]
[388921061,1759504235533,-356.064421,0.00018978,2]
[388921062,1759504235542,-151.0,0.00018978,2]
[388921063,1759504235552,-151.0,0.00018978,2]
[388921064,1759504235562,-151.0,0.00018978,2]
[388921065,1759504235571,-151.0,0.00018978,2]
[388921066,1759504235581,-645.737578,0.00018978,2]
[388921067,1759504235590,-645.737578,0.00018978,2]
[388921068,1759504235599,-645.737578,0.00018978,2]
[388921069,1759504235609,-645.737578,0.00018978,2]
[388921070,1759504235619,-151.0,0.00018978,2]
[388921071,1759504235631,-151.0,0.00018978,2]
[388921072,1759504235642,-151.0,0.00018978,2]
[388921073,1759504235652,-151.0,0.00018978,2]
[388921074,1759504235662,-227.868023,0.00018978,2]
[388921075,1759504235673,-227.868023,0.00018978,2]
[388921076,1759504235683,-151.0,0.00018978,2]
[388921077,1759504235693,-227.868023,0.00018978,2]
[388921078,1759504235703,-227.868023,0.00018978,2]
[388921079,1759504235714,-151.0,0.00018978,2]
[388921080,1759504235725,-151.0,0.00018978,2]
[388921081,1759504235736,-151.0,0.00018978,2]
[388921082,1759504235748,-151.0,0.00018978,2]
[388921083,1759504235758,-151.0,0.00018978,2]
[388921084,1759504235767,-151.0,0.00018978,2]
[388921085,1759504235778,-151.0,0.00018978,2]
[388921086,1759504235788,-151.0,0.00018978,2]
[388921087,1759504235799,-151.0,0.00018978,2]
[388921088,1759504235810,-514.524648,0.00018978,2]
[388921089,1759504235820,-242.922839,0.00018978,2]
[388921090,1759504235830,-514.524648,0.00018978,2]
[388921091,1759504235839,-242.922839,0.00018978,2]
[388921092,1759504235849,-514.524648,0.00018978,2]
[388921093,1759504235859,-242.922839,0.00018978,2]
[388921094,1759504235868,-514.524648,0.00018978,2]
[388921095,1759504235879,-242.922839,0.00018978,2]
[388921096,1759504235889,-912.381134,0.00018978,2]
[388921097,1759504235898,-170.582754,0.00018978,2]
[388921098,1759504235907,-151.0,0.00018978,2]
[388921099,1759504235917,-170.582754,0.00018978,2]
[388921100,1759504235926,-912.381134,0.00018978,2]
[388921101,1759504235937,-170.582754,0.00018978,2]
[388921102,1759504235946,-912.381134,0.00018978,2]
[388921103,1759504235956,-170.582754,0.00018978,2]
[388921104,1759504235965,-912.381134,0.00018978,2]
[388921105,1759504235975,-151.0,0.00018978,2]
[388921106,1759504235985,-151.0,0.00018978,2]
[388921107,1759504235995,-151.0,0.00018978,2]
[388921108,1759504236005,-151.0,0.00018978,2]
[388921109,1759504236015,-151.0,0.00018978,2]
[388921110,1759504236024,-151.0,0.00018978,2]
[388921111,1759504236034,-271.8,0.00018978,2]
[388921112,1759504236044,-151.0,0.00018978,2]
[388921113,1759504236053,-311.824237,0.00018978,2]
[388921114,1759504236066,-151.0,0.00018978,2]
[388921115,1759504236077,-311.824237,0.00018978,2]